[Event "Titled Tuesday Blitz May 10 Late 2022"]
[White "Adla, Diego"]
[Black "Simonovic, Miroslav"]
[WhiteFideId "100072"]
[BlackFideId "919152"]
[WhiteElo "2377"]
[BlackElo "2043"]
[Result "1-0"]
[Round "06"]
[TimeControl "180+1"]
[Date "2022.05.11"]
[WhiteClock "0:00:13"]
[BlackClock "0:00:13"]

1. e4 {[%clk 0:01:49]}  c5 {[%clk 0:02:59]} 2. Nf3 {[%clk 0:01:49]}  Nc6 {[%clk 0:03:00]} 3. d4 {[%clk 0:01:48]}  cxd4 {[%clk 0:03:01]} 4. Nxd4 {[%clk 0:01:49]}  e5 {[%clk 0:03:02]} 5. Nb5 {[%clk 0:01:49]}  d6 {[%clk 0:03:01]} 6. N1c3 {[%clk 0:01:49]}  a6 {[%clk 0:03:02]} 7. Na3 {[%clk 0:01:49]}  b5 {[%clk 0:03:02]} 8. Nd5 {[%clk 0:01:49]}  Nf6 {[%clk 0:03:03]} 9. Nxf6+ {[%clk 0:01:49]}  Qxf6 {[%clk 0:03:01]} 10. Bd3 {[%clk 0:01:50]}  Be7 {[%clk 0:03:01]} 11. O-O {[%clk 0:01:50]}  O-O {[%clk 0:03:00]} 12. c4 {[%clk 0:01:51]}  b4 {[%clk 0:03:00]} 13. Nc2 {[%clk 0:01:51]}  Rb8 {[%clk 0:02:56]} 14. b3 {[%clk 0:01:50]}  Qg6 {[%clk 0:02:52]} 15. a3 {[%clk 0:01:44]}  a5 {[%clk 0:02:50]} 16. axb4 {[%clk 0:01:44]}  Nxb4 {[%clk 0:02:28]} 17. Nxb4 {[%clk 0:01:44]}  axb4 {[%clk 0:02:26]} 18. f4 {[%clk 0:01:27]}  Bg4 {[%clk 0:02:11]} 19. Qe1 {[%clk 0:01:18]}  exf4 {[%clk 0:01:59]} 20. Bxf4 {[%clk 0:01:17]}  Bf6 {[%clk 0:01:56]} 21. Ra6 {[%clk 0:01:15]}  Bh3 {[%clk 0:01:43]} 22. Qg3 {[%clk 0:01:14]}  Bd4+ {[%clk 0:01:42]} 23. Kh1 {[%clk 0:01:13]}  Qxg3 {[%clk 0:01:38]} 24. Bxg3 {[%clk 0:01:13]}  Be6 {[%clk 0:01:28]} 25. Bxd6 {[%clk 0:01:10]}  Ra8 {[%clk 0:01:26]} 26. Rxa8 {[%clk 0:00:42]}  Rxa8 {[%clk 0:01:27]} 27. Rb1 {[%clk 0:00:41]}  Bc3 {[%clk 0:01:17]} 28. h3 {[%clk 0:00:40]}  Rd8 {[%clk 0:01:09]} 29. c5 {[%clk 0:00:38]}  Bd7 {[%clk 0:01:06]} 30. Bc4 {[%clk 0:00:35]}  Bc6 {[%clk 0:01:02]} 31. Bd5 {[%clk 0:00:35]}  Bb5 {[%clk 0:01:00]} 32. Rc1 {[%clk 0:00:23]}  h6 {[%clk 0:00:51]} 33. Rc2 {[%clk 0:00:22]}  Be1 {[%clk 0:00:37]} 34. Ra2 {[%clk 0:00:22]}  Bd7 {[%clk 0:00:23]} 35. Ra8 {[%clk 0:00:20]}  Rxa8 {[%clk 0:00:22]} 36. Bxa8 {[%clk 0:00:21]}  f5 {[%clk 0:00:16]} 37. c6 {[%clk 0:00:20]}  Bc8 {[%clk 0:00:16]} 38. Bb7 {[%clk 0:00:20]}  Be6 {[%clk 0:00:14]} 39. exf5 {[%clk 0:00:18]}  Bxf5 {[%clk 0:00:14]} 40. c7 {[%clk 0:00:18]}  Bc3 {[%clk 0:00:13]} 41. c8=Q+ {[%clk 0:00:18]}  Bxc8 {[%clk 0:00:13]} 42. Bxc8 {[%clk 0:00:18]}  Kf7 {[%clk 0:00:14]} 43. Bd7 {[%clk 0:00:18]}  Kf6 {[%clk 0:00:14]} 44. g3 {[%clk 0:00:18]}  g5 {[%clk 0:00:13]} 45. Kg2 {[%clk 0:00:18]}  h5 {[%clk 0:00:14]} 46. Kf3 {[%clk 0:00:18]}  Be1 {[%clk 0:00:13]} 47. g4 {[%clk 0:00:18]}  hxg4+ {[%clk 0:00:12]} 48. hxg4 {[%clk 0:00:19]}  Bc3 {[%clk 0:00:12]} 49. Ke4 {[%clk 0:00:20]}  Kg6 {[%clk 0:00:12]} 50. Be5 {[%clk 0:00:19]}  Bd2 {[%clk 0:00:11]} 51. Bf5+ {[%clk 0:00:18]}  Kf7 {[%clk 0:00:11]} 52. Kd5 {[%clk 0:00:19]}  Be1 {[%clk 0:00:10]} 53. Kc4 {[%clk 0:00:19]}  Ke7 {[%clk 0:00:10]} 54. Bd4 {[%clk 0:00:20]}  Kd6 {[%clk 0:00:10]} 55. Bc5+ {[%clk 0:00:19]}  Ke5 {[%clk 0:00:11]} 56. Bxb4 {[%clk 0:00:19]}  Bf2 {[%clk 0:00:11]} 57. Bd2 {[%clk 0:00:17]}  Ba7 {[%clk 0:00:11]} 58. Bxg5 {[%clk 0:00:17]}  Bb8 {[%clk 0:00:11]} 59. Bh4 {[%clk 0:00:16]}  Ba7 {[%clk 0:00:11]} 60. Bg3+ {[%clk 0:00:16]}  Kf6 {[%clk 0:00:12]} 61. Bf4 {[%clk 0:00:16]}  Kf7 {[%clk 0:00:12]} 62. Be4 {[%clk 0:00:15]}  Kg7 {[%clk 0:00:13]} 63. g5 {[%clk 0:00:15]}  Kf7 {[%clk 0:00:14]} 64. Bf5 {[%clk 0:00:13]}  Kg7 {[%clk 0:00:15]} 65. Be5+ {[%clk 0:00:13]}  Kf7 {[%clk 0:00:14]} 66. g6+ {[%clk 0:00:13]}  Kg8 {[%clk 0:00:13]} 67. Be6+ {[%clk 0:00:13]}  Kf8 {[%clk 0:00:13]} 68. Bf6 {[%clk 0:00:13]}  Bd4 {[%clk 0:00:12]} 69. g7+ {[%clk 0:00:13]}  Ke8 {[%clk 0:00:13]} 70. g8=Q# {[%clk 0:00:13]} 1-0


[Site "https://www.chess.com"]

[Event "Titled Tuesday Blitz May 10 Late 2022"]
[White "Aksu, Vedat Ali"]
[Black "Atanejhad, Sahebali"]
[WhiteFideId "6304320"]
[BlackFideId "12506664"]
[WhiteElo "2201"]
[BlackElo "1953"]
[Result "0-1"]
[Round "06"]
[TimeControl "180+1"]
[Date "2022.05.11"]
[WhiteClock "0:01:45"]
[BlackClock "0:01:41"]

1. Nf3 {[%clk 0:03:00]}  Nf6 {[%clk 0:03:00]} 2. c4 {[%clk 0:03:00]}  c5 {[%clk 0:03:00]} 3. Nc3 {[%clk 0:03:00]}  g6 {[%clk 0:02:59]} 4. b3 {[%clk 0:03:01]}  Bg7 {[%clk 0:03:00]} 5. Bb2 {[%clk 0:03:01]}  O-O {[%clk 0:03:00]} 6. e3 {[%clk 0:03:02]}  Ne4 {[%clk 0:02:57]} 7. Qc1 {[%clk 0:03:01]}  Nxc3 {[%clk 0:02:46]} 8. Bxc3 {[%clk 0:03:01]}  Nc6 {[%clk 0:02:44]} 9. Bxg7 {[%clk 0:02:58]}  Kxg7 {[%clk 0:02:45]} 10. h4 {[%clk 0:02:58]}  h5 {[%clk 0:02:44]} 11. a3 {[%clk 0:02:58]}  d5 {[%clk 0:02:38]} 12. cxd5 {[%clk 0:02:55]}  Qxd5 {[%clk 0:02:39]} 13. Qc3+ {[%clk 0:02:54]}  f6 {[%clk 0:02:37]} 14. Bc4 {[%clk 0:02:52]}  Qd6 {[%clk 0:02:37]} 15. Rh3 {[%clk 0:02:49]}  Bg4 {[%clk 0:02:34]} 16. Rg3 {[%clk 0:02:49]}  a6 {[%clk 0:02:30]} 17. Qc2 {[%clk 0:02:37]}  b5 {[%clk 0:02:27]} 18. Be2 {[%clk 0:02:35]}  Rad8 {[%clk 0:02:16]} 19. Rc1 {[%clk 0:02:34]}  c4 {[%clk 0:02:05]} 20. bxc4 {[%clk 0:02:33]}  Qxa3 {[%clk 0:02:02]} 21. cxb5 {[%clk 0:02:27]}  Nb4 {[%clk 0:02:01]} 22. Qb1 {[%clk 0:02:09]}  axb5 {[%clk 0:01:57]} 23. Nd4 {[%clk 0:02:07]}  e5 {[%clk 0:01:48]} 24. Bxg4 {[%clk 0:02:01]}  exd4 {[%clk 0:01:46]} 25. Bxh5 {[%clk 0:02:00]}  Nd3+ {[%clk 0:01:43]} 26. Kf1 {[%clk 0:01:58]}  Qxc1+ {[%clk 0:01:41]} 27. Qxc1 {[%clk 0:01:53]}  Nxc1 {[%clk 0:01:42]} 28. Rxg6+ {[%clk 0:01:52]}  Kh7 {[%clk 0:01:42]} 29. Rg4 {[%clk 0:01:47]}  dxe3 {[%clk 0:01:42]} 30. dxe3 {[%clk 0:01:45]}  Rd1# {[%clk 0:01:41]} 0-1


[Site "https://www.chess.com"]

[Event "Titled Tuesday Blitz May 10 Late 2022"]
[White "Alekseenko, Kirill"]
[Black "Rosen, Eric"]
[WhiteFideId "4135539"]
[BlackFideId "2032562"]
[WhiteElo "2682"]
[BlackElo "2362"]
[Result "1-0"]
[Round "06"]
[TimeControl "180+1"]
[Date "2022.05.10"]
[WhiteClock "0:01:56"]
[BlackClock "0:00:13"]

1. e4 {[%clk 0:03:00]}  c5 {[%clk 0:02:58]} 2. Nf3 {[%clk 0:03:01]}  Nc6 {[%clk 0:02:58]} 3. d4 {[%clk 0:03:02]}  cxd4 {[%clk 0:02:59]} 4. Nxd4 {[%clk 0:03:02]}  g6 {[%clk 0:02:59]} 5. c4 {[%clk 0:03:00]}  Bg7 {[%clk 0:02:59]} 6. Be3 {[%clk 0:03:01]}  Nf6 {[%clk 0:02:55]} 7. Nc3 {[%clk 0:03:01]}  O-O {[%clk 0:02:54]} 8. Be2 {[%clk 0:03:01]}  d6 {[%clk 0:02:51]} 9. O-O {[%clk 0:03:01]}  Bd7 {[%clk 0:02:50]} 10. Rc1 {[%clk 0:02:54]}  Nxd4 {[%clk 0:02:44]} 11. Bxd4 {[%clk 0:02:55]}  Bh6 {[%clk 0:02:43]} 12. f4 {[%clk 0:02:34]}  e5 {[%clk 0:02:33]} 13. fxe5 {[%clk 0:02:24]}  Bxc1 {[%clk 0:02:24]} 14. Qxc1 {[%clk 0:02:20]}  dxe5 {[%clk 0:01:48]} 15. Bxe5 {[%clk 0:02:20]}  Ng4 {[%clk 0:01:05]} 16. Bxg4 {[%clk 0:02:08]}  Bxg4 {[%clk 0:01:05]} 17. Bf6 {[%clk 0:02:08]}  Qb6+ {[%clk 0:00:47]} 18. Kh1 {[%clk 0:02:07]}  Bf5 {[%clk 0:00:17]} 19. Nd5 {[%clk 0:02:03]}  Qxf6 {[%clk 0:00:15]} 20. Nxf6+ {[%clk 0:02:03]}  Kg7 {[%clk 0:00:16]} 21. Rxf5 {[%clk 0:02:00]}  Rfd8 {[%clk 0:00:13]} 22. Rf1 {[%clk 0:01:56]} 1-0


[Site "https://www.chess.com"]

[Event "Titled Tuesday Blitz May 10 Late 2022"]
[White "Bifulco, Michel"]
[Black "Urbina Perez, Juan Antonio"]
[WhiteFideId "828580"]
[BlackFideId "2217368"]
[WhiteElo "2165"]
[BlackElo "2192"]
[Result "1-0"]
[Round "06"]
[TimeControl "180+1"]
[Date "2022.05.11"]
[WhiteClock "0:00:08"]
[BlackClock "0:00:09"]

1. d4 {[%clk 0:03:00]}  g6 {[%clk 0:02:58]} 2. Nc3 {[%clk 0:03:00]}  Bg7 {[%clk 0:02:58]} 3. e4 {[%clk 0:03:00]}  d6 {[%clk 0:02:58]} 4. Be3 {[%clk 0:03:00]}  a6 {[%clk 0:02:59]} 5. g4 {[%clk 0:03:00]}  b5 {[%clk 0:02:59]} 6. Bg2 {[%clk 0:03:00]}  Bb7 {[%clk 0:02:59]} 7. h4 {[%clk 0:03:00]}  h5 {[%clk 0:02:55]} 8. gxh5 {[%clk 0:03:00]}  Rxh5 {[%clk 0:02:54]} 9. Bf3 {[%clk 0:02:58]}  Rh8 {[%clk 0:02:54]} 10. h5 {[%clk 0:02:56]}  gxh5 {[%clk 0:02:53]} 11. Rxh5 {[%clk 0:02:55]}  Rxh5 {[%clk 0:02:53]} 12. Bxh5 {[%clk 0:02:56]}  Nf6 {[%clk 0:02:53]} 13. Bf3 {[%clk 0:02:54]}  Nbd7 {[%clk 0:02:50]} 14. Nh3 {[%clk 0:02:48]}  c5 {[%clk 0:02:45]} 15. Qd2 {[%clk 0:02:37]}  cxd4 {[%clk 0:02:42]} 16. Bxd4 {[%clk 0:02:37]}  Qc7 {[%clk 0:02:41]} 17. Qg5 {[%clk 0:02:27]}  Bf8 {[%clk 0:02:37]} 18. O-O-O {[%clk 0:02:22]}  O-O-O {[%clk 0:02:36]} 19. Nd5 {[%clk 0:02:06]}  Qc4 {[%clk 0:02:04]} 20. b3 {[%clk 0:01:54]}  Qc6 {[%clk 0:01:49]} 21. Bh1 {[%clk 0:01:16]}  Kb8 {[%clk 0:01:45]} 22. Nxf6 {[%clk 0:01:07]}  exf6 {[%clk 0:01:40]} 23. Qg3 {[%clk 0:00:51]}  Rc8 {[%clk 0:01:33]} 24. c3 {[%clk 0:00:38]}  Ne5 {[%clk 0:01:29]} 25. f4 {[%clk 0:00:36]}  Ng6 {[%clk 0:01:13]} 26. e5 {[%clk 0:00:30]}  Qc7 {[%clk 0:01:12]} 27. Bxb7 {[%clk 0:00:29]}  Qxb7 {[%clk 0:01:12]} 28. exf6 {[%clk 0:00:29]}  b4 {[%clk 0:01:07]} 29. Kb2 {[%clk 0:00:28]}  bxc3+ {[%clk 0:01:06]} 30. Bxc3 {[%clk 0:00:28]}  Qb5 {[%clk 0:00:50]} 31. Ng5 {[%clk 0:00:24]}  d5 {[%clk 0:00:34]} 32. Nxf7 {[%clk 0:00:21]}  Qc5 {[%clk 0:00:24]} 33. Rc1 {[%clk 0:00:16]}  d4 {[%clk 0:00:22]} 34. Bd2 {[%clk 0:00:13]}  Qa3+ {[%clk 0:00:18]} 35. Kb1 {[%clk 0:00:13]}  Bb4 {[%clk 0:00:12]} 36. f5+ {[%clk 0:00:11]}  Rc7 {[%clk 0:00:11]} 37. Qxc7+ {[%clk 0:00:10]}  Ka8 {[%clk 0:00:09]} 38. Qc8+ {[%clk 0:00:10]}  Ka7 {[%clk 0:00:10]} 39. Rc7+ {[%clk 0:00:09]}  Kb6 {[%clk 0:00:10]} 40. Qb7+ {[%clk 0:00:10]}  Ka5 {[%clk 0:00:09]} 41. Rc5# {[%clk 0:00:08]} 1-0


[Site "https://www.chess.com"]

[Event "Titled Tuesday Blitz May 10 Late 2022"]
[White "Butti, Enrique"]
[Black "Adewumi, Tanitoluwa"]
[WhiteFideId "3700470"]
[BlackFideId "30966396"]
[WhiteElo "2080"]
[BlackElo "2498"]
[Result "0-1"]
[Round "06"]
[TimeControl "180+1"]
[Date "2022.05.11"]
[WhiteClock "0:00:07"]
[BlackClock "0:01:17"]

1. d4 {[%clk 0:02:59]}  Nf6 {[%clk 0:02:58]} 2. Nf3 {[%clk 0:02:58]}  d5 {[%clk 0:02:56]} 3. c4 {[%clk 0:02:57]}  e6 {[%clk 0:02:54]} 4. e3 {[%clk 0:02:56]}  Bb4+ {[%clk 0:02:47]} 5. Nbd2 {[%clk 0:02:54]}  O-O {[%clk 0:02:45]} 6. a3 {[%clk 0:02:53]}  Be7 {[%clk 0:02:42]} 7. b3 {[%clk 0:02:52]}  b6 {[%clk 0:02:41]} 8. Bd3 {[%clk 0:02:51]}  Bb7 {[%clk 0:02:39]} 9. Bb2 {[%clk 0:02:50]}  Ne4 {[%clk 0:02:39]} 10. O-O {[%clk 0:02:48]}  f5 {[%clk 0:02:38]} 11. Qc2 {[%clk 0:02:38]}  Nd7 {[%clk 0:02:33]} 12. cxd5 {[%clk 0:02:24]}  exd5 {[%clk 0:02:25]} 13. Ne5 {[%clk 0:02:24]}  Bd6 {[%clk 0:02:19]} 14. f3 {[%clk 0:02:10]}  Nxd2 {[%clk 0:02:13]} 15. Qxd2 {[%clk 0:02:09]}  Qe7 {[%clk 0:02:10]} 16. f4 {[%clk 0:02:09]}  g6 {[%clk 0:02:03]} 17. Qe2 {[%clk 0:02:02]}  Nf6 {[%clk 0:02:00]} 18. Rf3 {[%clk 0:01:48]}  c5 {[%clk 0:01:50]} 19. Rh3 {[%clk 0:01:41]}  a6 {[%clk 0:01:46]} 20. dxc5 {[%clk 0:01:10]}  bxc5 {[%clk 0:01:43]} 21. Rf1 {[%clk 0:00:53]}  Rae8 {[%clk 0:01:39]} 22. Rff3 {[%clk 0:00:48]}  d4 {[%clk 0:01:35]} 23. Rfg3 {[%clk 0:00:41]}  Bxe5 {[%clk 0:01:31]} 24. Bc4+ {[%clk 0:00:30]}  Kg7 {[%clk 0:01:28]} 25. fxe5 {[%clk 0:00:11]}  Qxe5 {[%clk 0:01:28]} 26. Qc2 {[%clk 0:00:07]}  f4 {[%clk 0:01:17]} 0-1


[Site "https://www.chess.com"]

[Event "Titled Tuesday Blitz May 10 Late 2022"]
[White "Carrasco Miranda, Andres"]
[Black "Omariev, Maksim"]
[WhiteFideId "3405990"]
[BlackFideId "4193423"]
[WhiteElo "2177"]
[BlackElo "2496"]
[Result "1-0"]
[Round "06"]
[TimeControl "180+1"]
[Date "2022.05.11"]
[WhiteClock "0:00:19"]
[BlackClock "0:00:03"]

1. d4 {[%clk 0:03:00]}  h5 {[%clk 0:03:00]} 2. Nc3 {[%clk 0:02:58]}  h4 {[%clk 0:03:01]} 3. h3 {[%clk 0:02:58]}  c6 {[%clk 0:03:01]} 4. e4 {[%clk 0:02:58]}  d5 {[%clk 0:03:02]} 5. e5 {[%clk 0:02:58]}  Bf5 {[%clk 0:03:02]} 6. Nf3 {[%clk 0:02:57]}  e6 {[%clk 0:03:02]} 7. Bd3 {[%clk 0:02:52]}  Bxd3 {[%clk 0:03:00]} 8. Qxd3 {[%clk 0:02:53]}  Be7 {[%clk 0:03:01]} 9. O-O {[%clk 0:02:50]}  Nh6 {[%clk 0:03:01]} 10. Ne2 {[%clk 0:02:43]}  Nf5 {[%clk 0:03:01]} 11. c4 {[%clk 0:02:43]}  dxc4 {[%clk 0:03:00]} 12. Qxc4 {[%clk 0:02:44]}  Nd7 {[%clk 0:03:01]} 13. Nc3 {[%clk 0:02:41]}  Nb6 {[%clk 0:03:01]} 14. Qd3 {[%clk 0:02:41]}  c5 {[%clk 0:03:01]} 15. Rd1 {[%clk 0:02:37]}  c4 {[%clk 0:02:58]} 16. Qe4 {[%clk 0:02:35]}  Nd5 {[%clk 0:02:57]} 17. Nd2 {[%clk 0:02:25]}  Rc8 {[%clk 0:02:56]} 18. a4 {[%clk 0:02:20]}  Qd7 {[%clk 0:02:51]} 19. Qg4 {[%clk 0:02:19]}  Nb4 {[%clk 0:02:47]} 20. Nde4 {[%clk 0:02:12]}  b6 {[%clk 0:02:07]} 21. Bg5 {[%clk 0:02:10]}  Bxg5 {[%clk 0:01:52]} 22. Qxg5 {[%clk 0:02:08]}  Qe7 {[%clk 0:01:49]} 23. Nd6+ {[%clk 0:02:02]}  Nxd6 {[%clk 0:01:45]} 24. Qxg7 {[%clk 0:02:02]}  Rh5 {[%clk 0:01:14]} 25. exd6 {[%clk 0:01:59]}  Qg5 {[%clk 0:01:09]} 26. d7+ {[%clk 0:01:55]}  Kxd7 {[%clk 0:01:08]} 27. Qxf7+ {[%clk 0:01:56]}  Kc6 {[%clk 0:01:06]} 28. Ne4 {[%clk 0:01:26]}  Qf5 {[%clk 0:01:00]} 29. Qxf5 {[%clk 0:00:52]}  Rxf5 {[%clk 0:01:01]} 30. a5 {[%clk 0:00:49]}  b5 {[%clk 0:00:59]} 31. a6 {[%clk 0:00:49]}  Rd8 {[%clk 0:00:46]} 32. Nc5 {[%clk 0:00:47]}  e5 {[%clk 0:00:43]} 33. Ne6 {[%clk 0:00:39]}  Rd6 {[%clk 0:00:40]} 34. Ng7 {[%clk 0:00:33]}  Rg5 {[%clk 0:00:27]} 35. Ne8 {[%clk 0:00:32]}  Rd8 {[%clk 0:00:11]} 36. Nf6 {[%clk 0:00:29]}  exd4 {[%clk 0:00:11]} 37. Re1 {[%clk 0:00:27]}  Rd6 {[%clk 0:00:09]} 38. Ne4 {[%clk 0:00:26]}  Rgd5 {[%clk 0:00:04]} 39. Nxd6 {[%clk 0:00:25]}  Rxd6 {[%clk 0:00:05]} 40. Re4 {[%clk 0:00:26]}  d3 {[%clk 0:00:05]} 41. Rxh4 {[%clk 0:00:26]}  Nc2 {[%clk 0:00:02]} 42. Rd1 {[%clk 0:00:25]}  Nd4 {[%clk 0:00:02]} 43. Re4 {[%clk 0:00:21]}  Kc5 {[%clk 0:00:02]} 44. h4 {[%clk 0:00:19]}  Rxa6 {[%clk 0:00:02]} 45. g4 {[%clk 0:00:20]}  Rg6 {[%clk 0:00:02]} 46. g5 {[%clk 0:00:20]}  Nf3+ {[%clk 0:00:02]} 47. Kg2 {[%clk 0:00:20]}  Nd4 {[%clk 0:00:02]} 48. Rxd4 {[%clk 0:00:19]}  Kxd4 {[%clk 0:00:02]} 49. f4 {[%clk 0:00:19]}  Ke3 {[%clk 0:00:02]} 50. Kg3 {[%clk 0:00:19]}  Rg8 {[%clk 0:00:03]} 51. h5 {[%clk 0:00:20]}  Ke2 {[%clk 0:00:04]} 52. Rh1 {[%clk 0:00:19]}  d2 {[%clk 0:00:05]} 53. h6 {[%clk 0:00:19]}  d1=Q {[%clk 0:00:05]} 54. Rxd1 {[%clk 0:00:19]}  Kxd1 {[%clk 0:00:06]} 55. h7 {[%clk 0:00:20]}  Rd8 {[%clk 0:00:04]} 56. g6 {[%clk 0:00:20]}  Kc2 {[%clk 0:00:04]} 57. g7 {[%clk 0:00:19]}  Kxb2 {[%clk 0:00:05]} 58. h8=Q {[%clk 0:00:19]}  Rxh8 {[%clk 0:00:04]} 59. gxh8=Q+ {[%clk 0:00:20]}  c3 {[%clk 0:00:05]} 60. Qd4 {[%clk 0:00:19]}  Kb3 {[%clk 0:00:05]} 61. f5 {[%clk 0:00:19]}  b4 {[%clk 0:00:05]} 62. f6 {[%clk 0:00:20]}  c2 {[%clk 0:00:06]} 63. Qd3+ {[%clk 0:00:20]}  Kb2 {[%clk 0:00:06]} 64. Qd2 {[%clk 0:00:20]}  b3 {[%clk 0:00:05]} 65. f7 {[%clk 0:00:20]}  Kb1 {[%clk 0:00:06]} 66. Qd3 {[%clk 0:00:20]}  b2 {[%clk 0:00:05]} 67. f8=Q {[%clk 0:00:20]}  Ka1 {[%clk 0:00:03]} 68. Qfa3+ {[%clk 0:00:19]}  Kb1 {[%clk 0:00:03]} 69. Qab3 {[%clk 0:00:20]}  Ka1 {[%clk 0:00:03]} 70. Qdxc2 {[%clk 0:00:19]} 1-0


[Site "https://www.chess.com"]

[Event "Titled Tuesday Blitz May 10 Late 2022"]
[White "Cilek, Bora"]
[Black "Godzwon, Iwo"]
[WhiteFideId "34502165"]
[BlackFideId "21802483"]
[WhiteElo "2440"]
[BlackElo "2201"]
[Result "1-0"]
[Round "06"]
[TimeControl "180+1"]
[Date "2022.05.11"]
[WhiteClock "0:00:59"]
[BlackClock "0:01:19"]

1. Nf3 {[%clk 0:03:00]}  b6 {[%clk 0:02:59]} 2. g3 {[%clk 0:03:00]}  Bb7 {[%clk 0:02:59]} 3. Bg2 {[%clk 0:03:01]}  Nf6 {[%clk 0:02:58]} 4. O-O {[%clk 0:03:02]}  e6 {[%clk 0:02:56]} 5. c4 {[%clk 0:03:00]}  Be7 {[%clk 0:02:57]} 6. d4 {[%clk 0:03:00]}  O-O {[%clk 0:02:56]} 7. d5 {[%clk 0:03:00]}  exd5 {[%clk 0:02:56]} 8. Nh4 {[%clk 0:02:59]}  c6 {[%clk 0:02:56]} 9. cxd5 {[%clk 0:02:55]}  Nxd5 {[%clk 0:02:56]} 10. Nf5 {[%clk 0:02:53]}  Re8 {[%clk 0:02:55]} 11. e4 {[%clk 0:02:47]}  Nc7 {[%clk 0:02:55]} 12. Nc3 {[%clk 0:02:40]}  d5 {[%clk 0:02:51]} 13. exd5 {[%clk 0:02:38]}  Nxd5 {[%clk 0:02:50]} 14. Nxd5 {[%clk 0:02:38]}  cxd5 {[%clk 0:02:42]} 15. Re1 {[%clk 0:02:37]}  Bf8 {[%clk 0:02:32]} 16. Rxe8 {[%clk 0:02:19]}  Qxe8 {[%clk 0:02:31]} 17. Bxd5 {[%clk 0:02:11]}  Bxd5 {[%clk 0:02:23]} 18. Qxd5 {[%clk 0:02:11]}  Nc6 {[%clk 0:02:21]} 19. Bf4 {[%clk 0:01:33]}  Rd8 {[%clk 0:02:13]} 20. Nd6 {[%clk 0:01:28]}  Qd7 {[%clk 0:02:11]} 21. Rd1 {[%clk 0:01:25]}  Na5 {[%clk 0:01:31]} 22. Rd2 {[%clk 0:01:07]}  Nb7 {[%clk 0:01:27]} 23. Qxb7 {[%clk 0:01:01]}  Qxb7 {[%clk 0:01:26]} 24. Nxb7 {[%clk 0:01:02]}  Rc8 {[%clk 0:01:21]} 25. Rd8 {[%clk 0:00:58]}  Rxd8 {[%clk 0:01:19]} 26. Nxd8 {[%clk 0:00:59]} 1-0


[Site "https://www.chess.com"]

[Event "Titled Tuesday Blitz May 10 Late 2022"]
[White "Della Morte, German"]
[Black "Papasimakopoulos, Alexandros"]
[WhiteFideId "113522"]
[BlackFideId "4244125"]
[WhiteElo "2363"]
[BlackElo "2340"]
[Result "1-0"]
[Round "06"]
[TimeControl "180+1"]
[Date "2022.05.10"]
[WhiteClock "0:00:02"]
[BlackClock "0:01:23"]

1. e4 {[%clk 0:03:00]}  e6 {[%clk 0:03:00]} 2. d4 {[%clk 0:03:00]}  d5 {[%clk 0:03:00]} 3. Nd2 {[%clk 0:03:00]}  Nf6 {[%clk 0:03:00]} 4. e5 {[%clk 0:03:00]}  Nfd7 {[%clk 0:03:01]} 5. Bd3 {[%clk 0:03:00]}  c5 {[%clk 0:03:02]} 6. c3 {[%clk 0:03:01]}  Nc6 {[%clk 0:03:02]} 7. Ne2 {[%clk 0:03:01]}  cxd4 {[%clk 0:03:03]} 8. cxd4 {[%clk 0:03:02]}  f6 {[%clk 0:03:04]} 9. exf6 {[%clk 0:03:03]}  Nxf6 {[%clk 0:03:05]} 10. Nf3 {[%clk 0:03:03]}  Bd6 {[%clk 0:03:06]} 11. O-O {[%clk 0:03:03]}  Qc7 {[%clk 0:03:06]} 12. Nc3 {[%clk 0:02:58]}  a6 {[%clk 0:03:06]} 13. h3 {[%clk 0:02:56]}  O-O {[%clk 0:03:06]} 14. Bd2 {[%clk 0:02:56]}  Bd7 {[%clk 0:03:07]} 15. Rc1 {[%clk 0:02:56]}  Rae8 {[%clk 0:03:03]} 16. Re1 {[%clk 0:02:51]}  Qb6 {[%clk 0:03:04]} 17. Na4 {[%clk 0:02:32]}  Qa7 {[%clk 0:03:04]} 18. Be3 {[%clk 0:02:33]}  Ne4 {[%clk 0:02:54]} 19. Bxe4 {[%clk 0:02:28]}  dxe4 {[%clk 0:02:55]} 20. Ng5 {[%clk 0:02:29]}  Nb4 {[%clk 0:02:54]} 21. Nxe4 {[%clk 0:02:22]}  Be7 {[%clk 0:02:41]} 22. Nac3 {[%clk 0:02:17]}  Qb8 {[%clk 0:02:38]} 23. Bg5 {[%clk 0:01:51]}  Bxg5 {[%clk 0:02:31]} 24. Nxg5 {[%clk 0:01:52]}  h6 {[%clk 0:02:32]} 25. Nf3 {[%clk 0:01:45]}  Qf4 {[%clk 0:02:27]} 26. Re4 {[%clk 0:01:37]}  Qf6 {[%clk 0:02:23]} 27. a3 {[%clk 0:01:31]}  Nd5 {[%clk 0:02:23]} 28. Nxd5 {[%clk 0:01:23]}  exd5 {[%clk 0:02:24]} 29. Rxe8 {[%clk 0:01:23]}  Bxe8 {[%clk 0:02:22]} 30. Qd2 {[%clk 0:01:10]}  Bh5 {[%clk 0:02:15]} 31. Ne5 {[%clk 0:01:09]}  Qb6 {[%clk 0:02:08]} 32. Rc3 {[%clk 0:01:02]}  Be8 {[%clk 0:01:59]} 33. Rg3 {[%clk 0:00:58]}  Ba4 {[%clk 0:01:51]} 34. Kh2 {[%clk 0:00:48]}  Be8 {[%clk 0:01:50]} 35. b4 {[%clk 0:00:43]}  Qd6 {[%clk 0:01:48]} 36. f4 {[%clk 0:00:36]}  Qf6 {[%clk 0:01:48]} 37. Rf3 {[%clk 0:00:34]}  Qf5 {[%clk 0:01:48]} 38. Qd3 {[%clk 0:00:27]}  Qe4 {[%clk 0:01:48]} 39. Qxe4 {[%clk 0:00:22]}  dxe4 {[%clk 0:01:48]} 40. Rf1 {[%clk 0:00:22]}  Bb5 {[%clk 0:01:47]} 41. Re1 {[%clk 0:00:16]}  Rxf4 {[%clk 0:01:47]} 42. g3 {[%clk 0:00:16]}  Rf2+ {[%clk 0:01:47]} 43. Kg1 {[%clk 0:00:16]}  Ra2 {[%clk 0:01:46]} 44. Rxe4 {[%clk 0:00:15]}  Rxa3 {[%clk 0:01:46]} 45. Kg2 {[%clk 0:00:15]}  Ra2+ {[%clk 0:01:34]} 46. Kf3 {[%clk 0:00:14]}  Rb2 {[%clk 0:01:31]} 47. d5 {[%clk 0:00:13]}  Rd2 {[%clk 0:01:32]} 48. Ng6 {[%clk 0:00:12]}  Kf7 {[%clk 0:01:27]} 49. Ne7 {[%clk 0:00:04]}  Ba4 {[%clk 0:01:27]} 50. h4 {[%clk 0:00:04]}  Bb3 {[%clk 0:01:26]} 51. Re5 {[%clk 0:00:02]}  Kf6 {[%clk 0:01:27]} 52. Re6+ {[%clk 0:00:02]}  Kf7 {[%clk 0:01:27]} 53. Re5 {[%clk 0:00:03]}  b6 {[%clk 0:01:24]} 54. Ke3 {[%clk 0:00:03]}  Rd1 {[%clk 0:01:24]} 55. Ke2 {[%clk 0:00:03]}  a5 {[%clk 0:01:24]} 56. bxa5 {[%clk 0:00:03]}  bxa5 {[%clk 0:01:25]} 57. Nf5 {[%clk 0:00:02]}  a4 {[%clk 0:01:24]} 58. Nd6+ {[%clk 0:00:02]}  Kf6 {[%clk 0:01:23]} 59. Re6# {[%clk 0:00:02]} 1-0


[Site "https://www.chess.com"]